Cogmind - Beta 13 @@@ ROGUE MODE // 2024.04.18 @ 17:57:27 Player: Nicky Result: Self-destructed Performance ------------- Evolutions (1) 500 Regions Visited (3) 600 Robots Destroyed (3) 15 Value Destroyed (102) 102 Prototype IDs (2) 40 Alien Tech Used (0) 0 Bonus (83) 83 TOTAL SCORE: 1340 Bonus ------- Follower Combat Kills 83 Cogmind --------- Core Integrity 400/400 Matter 243/300 Energy 130/265 System Corruption 2% Temperature Cool (0) Movement Walking (120) Location -9/Materials Parts ------- > --- POWER (1) -------- Improved Ion Engine > --- PROPULSION (3) --- Aluminum Leg Aluminum Leg (fused) Improved Aluminum Leg > --- UTILITY (3) ------ Small Storage Unit Improved Sensor Array Shield Generator > --- WEAPON (2) ------- High-powered Shotgun Hammer > --- INVENTORY (8) ---- Ion Engine Light Treads Wheel VTOL Module Particle Cannon Particle Cannon High-powered Shotgun Grenade Launcher Peak State ------------ > --- POWER ------------ Improved Ion Engine > --- PROPULSION ------- Aluminum Leg Aluminum Leg Improved Aluminum Leg > --- UTILITY ---------- Small Storage Unit Improved Sensor Array Shield Generator > --- WEAPON ----------- High-powered Shotgun High-powered Shotgun > --- INVENTORY -------- Ion Engine Light Treads Wheel VTOL Module Particle Cannon Particle Cannon Grenade Launcher Hammer [Rating: 19] Favorites ----------- Power Ion Engine Engine Ion Engine Propulsion Aluminum Leg Treads Light Treads Leg Aluminum Leg Wheel Wheel Utility Small Storage Unit Device Shield Generator Storage Small Storage Unit Weapon Medium Laser Energy Gun Medium Laser Ballistic Gun Assault Rifle Impact Weapon Hammer Build | -11 -10 -10 -9 ------- Run | Yrd Mat Min Mat Slots Evolved 2 | . . . 2 Power . | . . . . Propulsion 1 | . . . 1 Utility 1 | . . . 1 Weapon . | . . . . Parts Attached 22 | 6 8 . 8 Power 3 | 1 1 . 1 Engine 3 | 1 1 . 1 Core . | . . . . Reactor . | . . . . Propulsion 10 | 2 5 . 3 Treads 1 | . 1 . . Leg 5 | . 2 . 3 Wheel 4 | 2 2 . . Hover . | . . . . Flight . | . . . . Utility 3 | 1 1 . 1 Device 2 | . 1 . 1 Storage 1 | 1 . . . Processor . | . . . . Hackware . | . . . . Protection . | . . . . Artifact . | . . . . Weapon 6 | 2 1 . 3 Energy Gun 2 | 2 . . . Energy Cannon . | . . . . Ballistic Gun 3 | . 1 . 2 Ballistic Cannon . | . . . . Launcher . | . . . . Special Weapon . | . . . . Impact Weapon 1 | . . . 1 Slashing Weapon . | . . . . Piercing Weapon . | . . . . Special Melee Weapon . | . . . . Unidentified Prototypes . | . . . . Parts Lost . | . . . . Power . | . . . . Propulsion . | . . . . Utility . | . . . . Weapon . | . . . . Highest Loss Streak . | . . . . To Critical Strikes . | . . . . Average Slot Usage (%) 94 | . 99 100 91 Engine 12 | . 14 14 11 Leg 16 | . 3 . 26 Wheel 12 | . 21 28 4 Device 15 | . 13 14 17 Storage 12 | . 14 14 11 Energy Gun 9 | . 16 14 4 Ballistic Gun 13 | . 11 14 14 Impact Weapon 1 | . . . 1 Naked Turns . | . . . . Heaviest Build 21 | 12 16 16 21 Greatest Support 33 | 26 26 26 33 Greatest Overweight (x) 1 | . 1 . . Average Overweight (x) . | . . . . Largest Inventory Capacity 8 | 8 8 8 8 Average Capacity 7 | 6 8 8 8 Most Carried 8 | 6 8 8 8 Average Carried 7 | 3 7 8 7 Final Capacity 8 | 8 8 8 8 Final Carried 8 | 6 8 8 8 Class Distribution -------------------- 100% | Mutant Dominant Class ---------------- Mutant | -10/Materials Mutant | -10/Mines Mutant | -9/Materials Resources | -11 -10 -10 -9 ----------- Run | Yrd Mat Min Mat Matter Collected 393 | 219 118 . 56 Remotely . | . . . . Salvage Created 136 | . 136 . . Parts 9 | . 9 . . Haulers Intercepted . | . . . . Recyclers Shooed . | . . . . Parts Field Recycled . | . . . . Retrieved Matter . | . . . . Parts Self-Destructed . | . . . . Prevented . | . . . . Kills | -11 -10 -10 -9 ------- Run | Yrd Mat Min Mat Combat Hostiles Destroyed 3 | . 3 . . Guns 3 | . 3 . . Classes Destroyed 1 | . 1 . . Grunt 3 | . 3 . . Best Kill Streak 2 | . 2 . . Combat Bots Only 2 | . 2 . . Max Kills in Single Turn 1 | . 1 . . Gunslinging . | . . . . Exploded . | . . . . Melee . | . . . . Uniques/NPCs Destroyed . | . . . . Combat | -11 -10 -10 -9 -------- Run | Yrd Mat Min Mat Hostile Shots Fired 7 | . 7 . . Missed 2 | . 2 . . Damage Taken 174 | . 44 . 130 Core 9 | . 9 . . Absorbed by Shields 60 | . 15 . 45 Core Remaining (%) 98 | 100 . 96 . Volleys Fired 10 | . 9 . 1 Largest 2 | . 2 . 2 Hottest 70 | . 70 . 70 Shots Fired 20 | . 18 . 2 Gun 20 | . 18 . 2 Cannon . | . . . . Launcher . | . . . . Special . | . . . . Kinetic 10 | . 9 . 1 Thermal 10 | . 9 . 1 Explosive . | . . . . Electromagnetic . | . . . . Robot Hit Streak 9 | . 9 . 7 Robot Miss Streak 1 | . 1 . . Penetration Max . | . . . . Secondary Targets . | . . . . Shots Hit Robots 17 | . 15 . 2 Core Hits 6 | . 6 . . Critical Kills . | . . . . Critical Parts Destroyed . | . . . . Critical Strikes . | . . . . Melee Attacks 6 | . . . 6 Impact 6 | . . . 6 Slashing . | . . . . Piercing . | . . . . Sneak Attacks . | . . . . Combat Hostiles . | . . . . Follow-up Attacks . | . . . . Damage Inflicted 220 | . 195 . 25 Guns 220 | . 195 . 25 Cannons . | . . . . Explosions . | . . . . Melee . | . . . . Ramming . | . . . . Kinetic 132 | . 119 . 13 Thermal 88 | . 76 . 12 Explosive . | . . . . Electromagnetic . | . . . . Impact . | . . . . Slashing . | . . . . Piercing . | . . . . Highest Corruption 2 | . . . 2 Average Corruption 2 | . . . 2 Corruption Purged . | . . . . Corruption Blocked . | . . . . Effects 4 | . . . 4 Heat Flow Errors 3 | . . . 3 Parts Fused 1 | . . . 1 Overload Shots . | . . . . Overflow Damage . | . . . . Projectiles . | . . . . Explosions . | . . . . Melee . | . . . . Knockbacks . | . . . . Impact . | . . . . Kinetic . | . . . . Secondary . | . . . . Self-Inflicted Damage . | . . . . Shots . | . . . . Rammed . | . . . . Targets Rammed . | . . . . Kicked . | . . . . Crushed . | . . . . Highest Temperature 230 | . 48 . 230 Average Temperature 68 | . 20 . 111 Received Heat Transfer 20 | . 20 . . Siege Activations . | . . . . Robots Corrupted . | . . . . Combat Hostiles . | . . . . Parts Fried . | . . . . Impact Corruptions . | . . . . Robots Melted . | . . . . Combat Hostiles . | . . . . Parts Melted . | . . . . Heat Transferred 259 | . 222 . 37 Parts Sabotaged . | . . . . Parts Stolen . | . . . . Parts Stripped . | . . . . Power Chain Reactions . | . . . . Alert | -11 -10 -10 -9 ------- Run | Yrd Mat Min Mat Peak Influence 121 | . 85 33 121 Initial 33 | . . 33 12 Average 44 | . 33 33 59 Maximum Alert Level . | . . . . Low Security (%) 100 | 100 100 100 100 Level 1 . | . . . . Level 2 . | . . . . Level 3 . | . . . . Level 4 . | . . . . Level 5 . | . . . . High Security . | . . . . Max Security . | . . . . Squads Dispatched 4 | . 1 1 2 Investigation 2 | . . . 2 Extermination . | . . . . Reinforcement 1 | . 1 . . Assault 1 | . . 1 . Garrison . | . . . . Intercept . | . . . . Searches Triggered . | . . . . Construction Impeded . | . . . . Haulers Reinforced . | . . . . Active Scanning Responses . | . . . . Cargo Convoy Interrupts . | . . . . Stealth | -11 -10 -10 -9 --------- Run | Yrd Mat Min Mat Distress Signals 1 | . . . 1 Communications Jammed . | . . . . Distress Signals . | . . . . Times Spotted 8 | . 6 . 2 Peak Tracking Total 3 | . 3 . 2 Tactical Retreats . | . . . . Traps | -11 -10 -10 -9 ------- Run | Yrd Mat Min Mat Traps Triggered 2 | . . . 2 Indirectly . | . . . . Trap Hack Attempts . | . . . . Triggered . | . . . . Disarmed . | . . . . Reprogrammed . | . . . . Reused . | . . . . Traps Extracted . | . . . . Installed . | . . . . Triggered . | . . . . Machines | -11 -10 -10 -9 ---------- Run | Yrd Mat Min Mat Machines Disabled . | . . . . Max in Single Turn . | . . . . Machines Repaired . | . . . . Machines Dismantled . | . . . . Machines Sabotaged . | . . . . Overloaded Fab Kills . | . . . . Hacking | -11 -10 -10 -9 --------- Run | Yrd Mat Min Mat Machines Accessed 4 | . . . 4 Terminals 4 | . . . 4 Fabricators . | . . . . Repair Stations . | . . . . Recycling Units . | . . . . Scanalyzers . | . . . . Garrison Access . | . . . . Total Hacks 12 | . . . 12 Successful 7 | . . . 7 Failed 5 | . . . 5 Catastrophic . | . . . . Database Lockouts . | . . . . Manual 10 | . . . 10 Terminals 12 | . . . 12 Fabricators . | . . . . Repair Stations . | . . . . Recycling Units . | . . . . Scanalyzers . | . . . . Garrison Access . | . . . . Terminal Hacks 3 | . . . 3 Prototype ID Bank 1 | . . . 1 Terminal Index 1 | . . . 1 Locate Traps 1 | . . . 1 Fabricator Hacks . | . . . . Repair Station Hacks . | . . . . Recycling Unit Hacks . | . . . . Scanalyzer . | . . . . Garrison Access Hacks . | . . . . Unauthorized Hacks 4 | . . . 4 Terminals 4 | . . . 4 Botnet 4 | . . . 4 Fabricators . | . . . . Repair Stations . | . . . . Recycling Units . | . . . . Scanalyzers . | . . . . Garrison Access . | . . . . Data Cores Recovered . | . . . . Used . | . . . . Hacking Detections 4 | . . . 4 Full Trace Events 2 | . . . 2 Feedback Events . | . . . . Feedback Blocked . | . . . . Robot Schematics Acquired . | . . . . Robots Built . | . . . . Authchips . | . . . . Time . | . . . . Total Robot Build Rating . | . . . . Part Schematics Acquired . | . . . . Parts Built . | . . . . Authchips . | . . . . Time . | . . . . Total Part Build Rating . | . . . . Parts Repaired . | . . . . Time . | . . . . Parts Recycled . | . . . . Recycled Matter . | . . . . Retrieved Matter . | . . . . Retrieved Components . | . . . . Parts Scanalyzed . | . . . . Part Schematics Acquired . | . . . . Parts Damaged . | . . . . Bothacking | -11 -10 -10 -9 ------------ Run | Yrd Mat Min Mat Used RIF Installer . | . . . . Robots Hacked . | . . . . Non-combat . | . . . . Combat . | . . . . Robot Hacks Applied . | . . . . Relay Couplers Released . | . . . . Fabnet Peak Effective % . | . . . . Robots Rewired . | . . . . Allies Hacked . | . . . . Hacks Repelled . | . . . . Allies | -11 -10 -10 -9 -------- Run | Yrd Mat Min Mat Total Allies 3 | . . 3 . Largest Group 3 | . . 3 3 Highest-Rated Group 77 | . . 77 77 Highest-Rated Ally 31 | . . 31 31 Total Orders . | . . . . Ally Attacks 18 | . . . 18 Total Damage 248 | . . . 248 Kills 3 | . . . 3 Allies Corrupted 1 | . . . 1 Allies Melted . | . . . . Intel | -11 -10 -10 -9 ------- Run | Yrd Mat Min Mat Robot Analysis Total . | . . . . Derelict Logs Recovered . | . . . . Drone Launches . | . . . . Drone Recoveries . | . . . . Exploration | -11 -10 -10 -9 ------------- Run | Yrd Mat Min Mat Turns Passed 582 | 48 147 77 310 Spaces Moved 447 | 39 92 71 245 Core 2 | 2 . . . Treads . | . . . . Legs 185 | . 6 . 179 Wheels 260 | 37 86 71 66 Hover . | . . . . Flight . | . . . . Fastest Speed 50 | 50 90 90 90 Average Speed 103 | 86 96 90 111 Slowest Speed 190 | 90 190 90 120 Overloaded Moves . | . . . . Propulsion Burnouts . | . . . . Robots Hopped . | . . . . Cave-ins Triggered 1 | . . . 1 Exploration Rate (%) 15 | 3 24 22 14 Regions Visited 3 Branch Regions 1 Pre-discovered Areas . | . . . . Known Exits Taken . | . . . . Unknown Exits Taken 3 | 1 1 1 . Scrap Searched . | . . . . Spaces Dug 4 | . . . 4 Terrain Destroyed 4 | . . . 4 Melee 4 | . . . 4 Projectile . | . . . . AOE . | . . . . Terrain Rammed . | . . . . Walls Destroyed . | . . . . Machines Disabled . | . . . . Actions | -11 -10 -10 -9 --------- Run | Yrd Mat Min Mat Total 531 | 50 132 83 266 Wait 28 | . 14 13 1 Move 444 | 38 91 70 245 Hop . | . . . . Pick Up 13 | 6 6 . 1 Fast Attach 10 | 6 . . 4 Attach 2 | . 2 . . Detach . | . . . . Swap 10 | . 6 . 4 Drop 8 | . 4 . 4 Fire 10 | . 9 . 1 Melee 6 | . . . 6 Ram . | . . . . Kick . | . . . . Crush . | . . . . Escape Stasis . | . . . . Rewire . | . . . . Trap . | . . . . Miscellaneous . | . . . . Route ------- -11/Scrapyard -10/Materials (discovered 2 exits: [*Min x2]) -10/Mines -9/Materials History --------- Turn | Location | Event 12 | -11/Scrapyard | Discovered new exit (range 15) 49 | -11/Scrapyard | Entered Materials 191 | -10/Materials | Discovered new exit (range 6) 192 | -10/Materials | Discovered new exit (range 15) 196 | -10/Materials | Entered Mines 241 | -10/Mines | Met a Derelict testing a Signal Generator 252 | -10/Mines | Discovered new exit (range 9) 273 | -10/Mines | Entered Materials 273 | -9/Materials | Accompanied by 3 allies 273 | -9/Materials | Evolved 2 slots: Propulsion x1, Utility x1 278 | -9/Materials | Led the pair of lost Derelicts to an unsafe place 306 | -9/Materials | Build established: Mutant 570 | -9/Materials | Crushed by falling debris 583 | -9/Materials | Self-destructed Last Messages --------------- 00462_ Connecting with Terminal... >>Prototypes Downloading prototype IDs... Imp. Medium Laser Imp. VTOL Module >>Trojan(Botnet) Trojan loaded successfully. Testing... Terminal linked with 2 systems. Awaiting botnet instructions. 00462_ ALERT: Suspicious activity at Terminal M008. Dispatching Investigation squad. 00490_ Connecting with Terminal... 00490_ ALERT: Suspicious activity at Terminal M002. Dispatching Investigation squad. 00533_ System corrupted: Heat flow error (+252). 00554_ System corrupted: Heat flow error (+244). 00570_ The unstable cave ceiling collapses. 00570_ Crushed by falling debris. 00581_ System corrupted: Aluminum Leg fused. Map ----- +----------------------------------------------------+ | ?????????????????????????????????????????????????? | | ?????????????????????????????????????????????????? | | ?????????????????????????????????????????????????? | | ?????????????????????????????????????????????????? | | ?????????????????????????????????????????????????? | | ?????????????????????????????????????????????????? | | ????????????????????????????????##???????????????? | | ???????????????????????????????? ???????????????? | | ???????????????????????????????? ???????????????? | | ???????????????????????????????? ???????????????? | | ???????????????????????????????? ???????????????? | | ???????????????????????????????? ???????????????? | | ????????????????????????????????# #??????????????? | | ????????????????????????????????# #??????????????? | | ????????????????????????????????# #??????????????? | | ????????????????????????????????# #???##########?? | | ????????????????????????????????#?#???# #?? | | ????????????????????????????????# ##### #?? | | ????????????????????????????????# # """ ??? | | ???????????????????????########## """"#?? | | ???????????????????????# """""#?? | | ???????????????????????# ##### """""#?? | | ???????????????????????# #???# """ #?? | | ???????????????????????# #???## ## #?? | | ?????????????????????###+## #????# ## #?? | | ?????????????????????# @# #????# ####/######## | | ????????????????????## # #????# #??# #?????# | | ????????????????????#; # #????# #??# #?????# | | ????????????????????## # #????# #??# #?????# | | ?????????????????????# # #????# #??# ####### | | ?????????????????????# # #????# #??# | | ?????????????????????# # #????# ########## [ | | ????????????????????## # #????# ## ## ## | | ????????????????????#; # #????# ## """ "## #? | | ????????????????????###;### #????# + """ T## ## | | ??????????????????????##### #????# ## """ "## # | | ??????????????????????#####+###### ## ## # | | ??????????????????????# ## ## ## # | | ??????????????????????# # ##+###### # | | ??????????????????????# # + | | ??????????????????????# + # | | ??????????????????????# "" """ # # | | ??????????????????????# "T """ # ####### # | | ??????????????????????# "" """ ## ## # # | | ??????????????????????# ## ## + ## | | ??????????????????????############ ## # #? | | ?????????????????????????????????#^ ## # #? | | ?????????????????????????????????# % ######?# #? | | ?????????????????????????????????#^ ######## #? | | ?????????????????????????????????# #? | +----------------------------------------------------+ Best States ------------- Heat Dissipation 28 Energy Generation 12 Energy Capacity 265 Matter Stores 293 Matter Capacity 300 Sight Range 16 Robot Scan Range 15 Terrain Scan Density 10 Evasion (%) 55 Item Schematics ----------------- None Robot Schematics ------------------ None Fabricated ------------ Nothing Alien Tech Used ----------------- None Achievements -------------- None Challenges ------------ None Game ------ Seed NetworkLayeredWheel Manual? 0 Play Time 00:15:55 Cumulative 11.2 hours Start 2024.04.18 @ 17:09:15 End 2024.04.18 @ 17:57:27 Sessions 1 Manual Loads 0 Difficulty Rogue Special Mode None Game No. 12 Rogue 12 Adventurer 0 Explorer 0 Win Type - Total 0 Types 0/0/0/0/0/0/0/0/0 Lore% 8 Gallery% 20 Achievement% 19 Wizard Run 0 Options --------- Layout 0 ASCII 0 Keyboard 0 Movement Arrows Keybinds 0 Fullscreen 2 Font 18/SmallcapsGlow Map View 76x50 Zoom Use 0% Tactical HUD 1 Map Filters NONE Filters NONE Steam 1 RUN: 4b3d91f7-edff-4ab8-b6a6-df8826017b15